fUST/lending_fUST_20251118
["ID","MTS","AMOUNT","RATE_DAILY","PERIOD"]
[394330277,1763459431986,-158.11891453,0.00030416,2]
[394330278,1763459432005,-1628.8514188,0.00030469,2]
[394330279,1763459432015,-456.01,0.00030503,10]
[394330280,1763459432024,-32270.17991855,0.00030504,2]
[394330323,1763459438161,-1239.5619507,0.00029514,2]
[394330324,1763459438170,-306.18578622,0.00030503,2]
[394330325,1763459438180,-525.55682166,0.00030503,2]
[394330326,1763459438190,-500.0,0.00030503,2]
[394330327,1763459438199,-500.0,0.00030503,2]
[394330328,1763459438208,-1163.1068966,0.00030503,2]
[394330329,1763459438218,-500.0,0.00030503,2]
[394330330,1763459438228,-500.0,0.00030503,2]
[394330331,1763459438238,-500.0,0.00030503,2]
[394330332,1763459438247,-500.0,0.00030503,2]
[394330333,1763459438257,-1163.1068966,0.00030503,2]
[394330334,1763459438267,-500.0,0.00030503,2]
[394330335,1763459438277,-500.0,0.00030503,2]
[394330336,1763459438289,-500.0,0.00030503,2]
[394330337,1763459438299,-1163.1068966,0.00030503,2]
[394330338,1763459438309,-500.0,0.00030503,2]
[394330339,1763459438319,-500.0,0.00030503,2]
[394330340,1763459438329,-500.0,0.00030503,2]
[394330341,1763459438339,-340.54028492,0.00030503,2]
[394330342,1763459438349,-1163.1068966,0.00030503,2]
[394330343,1763459438358,-500.0,0.00030503,2]
[394330344,1763459438369,-500.0,0.00030503,2]
[394330345,1763459438379,-500.0,0.00030503,2]
[394330346,1763459438389,-500.0,0.00030503,2]
[394330347,1763459438399,-1163.1068966,0.00030503,2]
[394330348,1763459438409,-500.0,0.00030503,2]
[394330349,1763459438419,-500.0,0.00030503,2]
[394330350,1763459438428,-500.0,0.00030503,2]
[394330351,1763459438437,-1163.1068966,0.00030503,2]
[394330352,1763459438447,-500.0,0.00030503,2]
[394330353,1763459438456,-500.0,0.00030503,2]
[394330354,1763459438465,-500.0,0.00030503,2]
[394330355,1763459438475,-1163.1068966,0.00030503,2]
[394330356,1763459438484,-500.0,0.00030503,2]
[394330357,1763459438493,-1163.1068966,0.00030503,2]
[394330358,1763459438503,-500.0,0.00030503,2]
[394330359,1763459438512,-500.0,0.00030503,2]
[394330360,1763459438521,-500.0,0.00030503,2]
[394330361,1763459438531,-500.0,0.00030503,2]
[394330362,1763459438542,-1163.1068966,0.00030503,2]
[394330363,1763459438551,-500.0,0.00030503,2]
[394330364,1763459438561,-590.48090631,0.00030503,2]
[394330365,1763459438570,-500.0,0.00030503,2]
[394330366,1763459438580,-1163.1068966,0.00030503,2]
[394330367,1763459438590,-500.0,0.00030503,2]
[394330368,1763459438600,-500.0,0.00030503,2]
[394330369,1763459438610,-1163.1068966,0.00030503,2]
[394330370,1763459438619,-500.0,0.00030503,2]
[394330371,1763459438629,-500.0,0.00030503,2]
[394330372,1763459438640,-1163.1068966,0.00030503,2]
[394330373,1763459438650,-500.0,0.00030503,2]
[394330374,1763459438659,-500.0,0.00030503,2]
[394330375,1763459438669,-1163.1068966,0.00030503,2]
[394330376,1763459438679,-500.0,0.00030503,2]
[394330377,1763459438690,-500.0,0.00030503,2]
[394330378,1763459438700,-500.0,0.00030503,2]
[394330379,1763459438710,-500.0,0.00030503,2]
[394330380,1763459438721,-500.0,0.00030503,2]
[394330381,1763459438730,-1163.1068966,0.00030503,2]
[394330382,1763459438740,-500.0,0.00030503,2]
[394330383,1763459438750,-500.0,0.00030503,2]
[394330384,1763459438761,-1163.1068966,0.00030503,2]
[394330385,1763459438771,-500.0,0.00030503,2]
[394330386,1763459438781,-500.0,0.00030503,2]
[394330387,1763459438792,-1163.1068966,0.00030503,2]
[394330388,1763459438803,-500.0,0.00030503,2]
[394330389,1763459438813,-1163.1068966,0.00030503,2]
[394330390,1763459438823,-500.0,0.00030503,2]
[394330391,1763459438832,-1163.1068966,0.00030503,2]
[394330392,1763459438843,-500.0,0.00030503,2]
[394330393,1763459438853,-500.0,0.00030503,2]
[394330394,1763459438863,-1163.1068966,0.00030503,2]
[394330395,1763459438873,-500.0,0.00030503,2]
[394330396,1763459438883,-500.0,0.00030503,2]
[394330397,1763459438894,-1163.1068966,0.00030503,2]
[394330398,1763459438904,-1163.1068966,0.00030503,2]
[394330399,1763459438915,-1163.1068966,0.00030503,2]
[394330400,1763459438925,-500.0,0.00030503,2]
[394330401,1763459438936,-1163.1068966,0.00030503,2]
[394330402,1763459438947,-500.0,0.00030503,2]
[394330403,1763459438957,-500.0,0.00030503,2]
[394330404,1763459438968,-1163.1068966,0.00030503,2]
[394330405,1763459438977,-1163.1068966,0.00030503,2]
[394330406,1763459438987,-500.0,0.00030503,2]
[394330407,1763459438997,-1163.1068966,0.00030503,2]
[394330408,1763459439009,-500.0,0.00030503,2]
[394330409,1763459439020,-1163.1068966,0.00030503,2]
[394330410,1763459439029,-500.0,0.00030503,2]
[394330411,1763459439040,-1163.1068966,0.00030503,2]
[394330412,1763459439150,-500.0,0.00030503,2]
[394330413,1763459439161,-1163.1068966,0.00030503,2]
[394330414,1763459439172,-1163.1068966,0.00030503,2]
[394330415,1763459439182,-500.0,0.00030503,2]
[394330416,1763459439192,-1163.1068966,0.00030503,2]
[394330417,1763459439202,-500.0,0.00030503,2]
[394330418,1763459439213,-1163.1068966,0.00030503,2]
[394330419,1763459439223,-424.98353215,0.00030503,2]
[394330420,1763459439233,-1163.1068966,0.00030503,2]
[394330421,1763459439243,-500.0,0.00030503,2]
[394330422,1763459439253,-1163.1068966,0.00030503,2]
[394330423,1763459439263,-500.0,0.00030503,2]
[394330424,1763459439273,-1163.1068966,0.00030503,2]
[394330425,1763459439283,-1163.1068966,0.00030503,2]
[394330426,1763459439294,-500.0,0.00030503,2]
[394330427,1763459439304,-1163.1068966,0.00030503,2]
[394330428,1763459439315,-500.0,0.00030503,2]
[394330429,1763459439325,-1163.1068966,0.00030503,2]
[394330430,1763459439335,-1163.1068966,0.00030503,2]
[394330431,1763459439345,-500.0,0.00030503,2]
[394330432,1763459439355,-1163.1068966,0.00030503,2]
[394330433,1763459439365,-1163.1068966,0.00030503,2]
[394330434,1763459439375,-1163.1068966,0.00030503,2]
[394330435,1763459439384,-1163.1068966,0.00030503,2]
[394330436,1763459439396,-1163.1068966,0.00030503,2]
[394330437,1763459439406,-1163.1068966,0.00030503,2]
[394330438,1763459439416,-1163.1068966,0.00030503,2]
[394330439,1763459439426,-1163.1068966,0.00030503,2]
[394330440,1763459439436,-1163.1068966,0.00030503,2]
[394330442,1763459439446,-1163.1068966,0.00030503,2]
[394330443,1763459439456,-1163.1068966,0.00030503,2]
[394330444,1763459439465,-1163.1068966,0.00030503,2]
[394330445,1763459439477,-1163.1068966,0.00030503,2]
[394330446,1763459439487,-1163.1068966,0.00030503,2]
[394330447,1763459439497,-1163.1068966,0.00030503,2]
[394330448,1763459439507,-1163.1068966,0.00030503,2]
[394330449,1763459439518,-4074.77214977,0.00030504,2]
[394330459,1763459443155,-300.0,0.000253,2]
[394330460,1763459443336,-424.87728044,0.000253,2]
[394330461,1763459443370,-135.00927817,0.000253,2]
[394330462,1763459443379,-859.88655861,0.00027852,2]
[394330463,1763459443389,-35.50712874,0.00030404,2]
[394330467,1763459536609,288.59582177,0.00015775,2]
[394330468,1763459568596,287.42351008,0.00015775,2]
[394330469,1763459708503,1601.0,0.00031335,120]
[394330474,1763459816443,-1676.43693623,0.00020199,2]
[394330475,1763459816471,-2762.12131963,0.00020403,2]
[394330476,1763459816718,-1122.89348828,0.00020403,2]
[394330477,1763459816744,-287.42351008,0.00020609,2]
[394330478,1763459816775,-288.59582177,0.00020687,2]
[394330479,1763459816800,-150.0,0.00022946,2]
[394330480,1763459816827,-1125.54850672,0.00023463,2]
[394330481,1763459816853,-999.0,0.00024144,2]
[394330486,1763460015726,1247.0,0.00030444,120]
[394330487,1763460016988,1247.0,0.00031966,120]
[394330488,1763460103984,192.66708343,0.00032,120]
[394330489,1763460109012,222.72144839,0.00032,120]
[394330490,1763460131682,186.5648667,0.00032,120]
[394330491,1763460138196,942.0424675,0.00038923,35]
[394330501,1763460314050,749.0,0.00030565,120]
[394330502,1763460315382,749.0,0.00032094,120]
[394330505,1763460355114,-150.0,0.00024822,2]
[394330506,1763460355135,-977.62154092,0.00024946,2]
[394330508,1763460367641,196.32159881,0.00032,120]
[394330514,1763460427133,-832.01410417,0.00024822,2]
[394330515,1763460427152,-154.96336187,0.00024846,2]
[394330516,1763460427171,-144.29379141,0.00024946,2]
[394330517,1763460427190,-177.44788898,0.00024976,2]
[394330518,1763460427208,-154.96336187,0.000252,2]
[394330519,1763460427229,-123.35125408,0.00025299,2]
[394330520,1763460435071,-176.64874592,0.00025299,2]
[394330521,1763460435090,-1013.11745401,0.000253,2]
[394330522,1763460435110,-206.57745823,0.000253,2]
[394330523,1763460435129,-198.52950467,0.000253,2]
[394330524,1763460435147,-255.70776585,0.000253,2]
[394330525,1763460435165,-198.44096256,0.000253,2]
[394330526,1763460435184,-86.23524547,0.00025442,2]
[394330527,1763460443994,186.5648667,0.00032,120]
[394330532,1763460483458,289.92,0.00015984,2]
[394330549,1763460597492,328.37308051,0.00015775,2]
[394330550,1763460597985,328.37308051,0.00019971,2]
[394330551,1763460606490,3242.685,0.0002,2]
[394330554,1763460610802,609.0,0.00030148,120]
[394330555,1763460612336,609.0,0.00031656,120]
[394330593,1763460632061,-328.37308051,0.00024166,2]
[394330595,1763460632071,-62.29429249,0.00024703,2]
[394330600,1763460632113,-380.57600175,0.00024703,2]
[394330603,1763460632125,-1567.73003272,0.00024703,2]
[394330605,1763460632136,-2989.39967304,0.00024703,2]
[394330607,1763460632145,-1935.51427603,0.00024953,2]
[394330609,1763460632155,-150.0,0.00025324,2]
[394330611,1763460632164,-2263.90778639,0.00025373,2]
[394330613,1763460632174,-300.0,0.00025453,2]
[394330615,1763460632183,-1200.0,0.00025453,2]
[394330617,1763460632192,-300.0,0.00025454,2]
[394330620,1763460632201,-300.0,0.00025454,2]
[394330623,1763460632210,-300.0,0.00025454,2]
[394330626,1763460632219,-1200.0,0.00025455,2]
[394330628,1763460632229,-4402.43372605,0.00025457,2]
[394330630,1763460632237,-50000.0,0.00025473,2]
[394330632,1763460632247,-501.23676638,0.00025473,2]
[394330634,1763460632256,-500.43010824,0.00025473,2]
[394330635,1763460632266,-533.06601794,0.00025473,2]
[394330637,1763460632275,-504.48044803,0.00025473,2]
[394330639,1763460632286,-500.0,0.00025473,2]
[394330641,1763460632295,-500.0,0.00025473,2]
[394330642,1763460632304,-503.94171378,0.00025473,2]
[394330643,1763460632313,-501.53740377,0.00025473,2]
[394330644,1763460632323,-500.0,0.00025473,2]
[394330645,1763460632332,-500.0,0.00025473,2]
[394330646,1763460632341,-500.0,0.00025473,2]
[394330647,1763460632350,-500.0,0.00025473,2]
[394330648,1763460632359,-500.0,0.00025473,2]
[394330649,1763460632368,-215.97941011,0.00025473,2]
[394330650,1763460632378,-500.0,0.00025473,2]
[394330651,1763460632387,-500.0,0.00025473,2]
[394330652,1763460632396,-500.0,0.00025473,2]
[394330653,1763460632406,-525.77018019,0.00025473,2]
[394330654,1763460632415,-500.0,0.00025473,2]
[394330655,1763460632424,-505.16041929,0.00025473,2]
[394330656,1763460632433,-562.43273138,0.00025473,2]
[394330657,1763460632442,-150.0,0.00025473,2]
[394330658,1763460632451,-500.0,0.00025473,2]
[394330659,1763460632461,-300.0,0.0002561,2]
[394330660,1763460632470,-151.79765954,0.00025747,2]
[394330661,1763460632479,-504.71434881,0.0002575,2]
[394330662,1763460632489,-500.0,0.0002575,2]
[394330663,1763460632610,-500.0,0.0002575,2]
[394330664,1763460632620,-501.69918419,0.0002575,2]
[394330665,1763460632629,-500.0,0.0002575,2]
[394330666,1763460632642,-429.60816672,0.00025773,2]
[394330667,1763460632651,-500.0,0.00025805,20]
[394330668,1763460632660,-300.0,0.00025805,20]
[394330669,1763460632669,-300.0,0.00025805,20]
[394330670,1763460632678,-300.0,0.00025805,20]
[394330671,1763460632687,-300.0,0.00025805,20]
[394330672,1763460632696,-300.0,0.00025805,20]
[394330673,1763460632705,-300.0,0.00025805,20]
[394330674,1763460632714,-300.0,0.00025805,20]
[394330675,1763460632725,-300.0,0.00025805,20]
[394330676,1763460632735,-300.0,0.00025805,20]
[394330677,1763460632744,-300.0,0.00025805,20]
[394330678,1763460632754,-300.0,0.00025805,20]
[394330679,1763460632764,-300.0,0.00025805,20]
[394330680,1763460632774,-300.0,0.00025805,20]
[394330681,1763460632783,-300.0,0.00025805,20]
[394330682,1763460632794,-300.0,0.00025805,20]
[394330683,1763460632803,-491.73840383,0.00026021,2]
[394330684,1763460632812,-1028.15823104,0.00026021,2]
[394330685,1763460632821,-1000.0,0.00026021,2]
[394330686,1763460632830,-1000.0,0.00026021,2]
[394330687,1763460632840,-1000.0,0.00026021,2]
[394330688,1763460632848,-1000.0,0.00026021,2]
[394330689,1763460632857,-1000.0,0.00026021,2]
[394330690,1763460632866,-296.99334525,0.00026021,2]
[394330697,1763460637981,-2474.15066827,0.0002576,2]
[394330698,1763460637991,-703.00665475,0.00026021,2]
[394330699,1763460638002,-660.92029148,0.00026021,2]
[394330700,1763460638011,-1000.0,0.00026021,2]
[394330701,1763460638021,-676.5,0.00026163,2]
[394330702,1763460638034,-1205.06,0.00026224,10]
[394330703,1763460638043,-2297.97,0.00026234,10]
[394330704,1763460638053,-1914.98,0.00026235,10]
[394330705,1763460638063,-186.75398993,0.00026243,2]
[394330706,1763460638072,-500.0,0.00026243,2]
[394330707,1763460638081,-312.99832835,0.00026243,2]
[394330708,1763460638091,-500.0,0.00026243,2]
[394330710,1763460638102,-534.78949182,0.00026243,2]
[394330712,1763460638112,-500.0,0.00026244,2]
[394330714,1763460638121,-500.0,0.00026244,2]
[394330715,1763460638130,-500.0,0.00026244,2]
[394330716,1763460638138,-500.0,0.00026244,2]
[394330717,1763460638148,-500.0,0.00026244,2]
[394330718,1763460638157,-169.3400172,0.00026244,2]
[394330719,1763460638166,-500.0,0.00026244,2]
[394330720,1763460638175,-817.46965564,0.00026244,2]
[394330721,1763460638184,-500.0,0.00026244,2]
[394330722,1763460638194,-500.0,0.00026244,2]
[394330723,1763460638203,-500.0,0.00026244,2]
[394330724,1763460638212,-817.46965564,0.00026244,2]
[394330725,1763460638221,-500.0,0.00026244,2]
[394330726,1763460638231,-500.0,0.00026244,2]
[394330727,1763460638240,-500.0,0.00026244,2]
[394330728,1763460638248,-500.0,0.00026244,2]
[394330729,1763460638258,-817.46965564,0.00026244,2]
[394330730,1763460638268,-500.0,0.00026244,2]
[394330731,1763460638277,-500.0,0.00026244,2]
[394330732,1763460638287,-500.0,0.00026244,2]
[394330733,1763460638296,-331.68652173,0.00026244,2]
[394330734,1763460638306,-817.46965564,0.00026244,2]
[394330735,1763460638315,-192.49835321,0.00026244,2]
[394330736,1763460638324,-500.0,0.00026244,2]
[394330737,1763460638333,-500.0,0.00026244,2]
[394330738,1763460638342,-817.46965564,0.00026244,2]
[394330739,1763460638351,-500.0,0.00026244,2]
[394330740,1763460638360,-500.0,0.00026244,2]
[394330741,1763460638369,-817.46965564,0.00026244,2]
[394330742,1763460638378,-609.04809063,0.00026244,2]
[394330743,1763460638387,-500.0,0.00026244,2]
[394330744,1763460638396,-817.46965564,0.00026244,2]
[394330745,1763460638405,-434.05402849,0.00026244,2]
[394330746,1763460638414,-817.46965564,0.00026244,2]
[394330747,1763460638423,-500.0,0.00026244,2]
[394330748,1763460638433,-817.46965564,0.00026244,2]
[394330749,1763460638442,-500.0,0.00026244,2]
[394330750,1763460638451,-817.46965564,0.00026244,2]
[394330751,1763460638460,-500.0,0.00026244,2]
[394330752,1763460638470,-817.46965564,0.00026244,2]
[394330753,1763460638480,-500.0,0.00026244,2]
[394330754,1763460638489,-500.0,0.00026244,2]
[394330755,1763460638499,-817.46965564,0.00026244,2]
[394330756,1763460638508,-500.0,0.00026244,2]
[394330757,1763460638518,-817.46965564,0.00026244,2]
[394330758,1763460638527,-817.46965564,0.00026244,2]
[394330759,1763460638540,-817.46965564,0.00026244,2]
[394330760,1763460638549,-500.0,0.00026244,2]
[394330761,1763460638558,-500.0,0.00026244,2]
[394330762,1763460638568,-500.0,0.00026244,2]
[394330763,1763460638577,-817.46965564,0.00026244,2]
[394330764,1763460638586,-817.46965564,0.00026244,2]
[394330765,1763460638595,-817.46965564,0.00026244,2]
[394330766,1763460638605,-817.46965564,0.00026244,2]
[394330767,1763460638615,-817.46965564,0.00026244,2]
[394330768,1763460638625,-817.46965564,0.00026244,2]
[394330769,1763460638635,-817.46965564,0.00026244,2]
[394330770,1763460638644,-817.46965564,0.00026244,2]
[394330771,1763460638654,-817.46965564,0.00026244,2]
[394330772,1763460638663,-817.46965564,0.00026244,2]
[394330773,1763460638673,-817.46965564,0.00026244,2]
[394330774,1763460638682,-817.46965564,0.00026244,2]
[394330775,1763460638692,-817.46965564,0.00026244,2]
[394330776,1763460638701,-817.46965564,0.00026244,2]
[394330777,1763460638711,-817.46965564,0.00026244,2]
[394330778,1763460638721,-817.46965564,0.00026244,2]
[394330779,1763460638730,-817.46965564,0.00026244,2]
[394330780,1763460638740,-817.46965564,0.00026244,2]
[394330781,1763460638750,-817.46965564,0.00026244,2]
[394330782,1763460638760,-817.46965564,0.00026244,2]
[394330783,1763460638769,-817.46965564,0.00026244,2]
[394330784,1763460638779,-817.46965564,0.00026244,2]
[394330785,1763460638789,-817.46965564,0.00026244,2]
[394330786,1763460638799,-817.46965564,0.00026244,2]
[394330787,1763460638808,-817.46965564,0.00026244,2]
[394330788,1763460638818,-817.46965564,0.00026244,2]
[394330789,1763460638828,-817.46965564,0.00026244,2]
[394330790,1763460638837,-817.46965564,0.00026244,2]
[394330791,1763460638847,-817.46965564,0.00026244,2]
[394330792,1763460638857,-817.46965564,0.00026244,2]
[394330793,1763460638866,-817.46965564,0.00026244,2]
[394330794,1763460638876,-817.46965564,0.00026244,2]
[394330795,1763460638886,-817.46965564,0.00026244,2]
[394330796,1763460638895,-817.46965564,0.00026244,2]
[394330797,1763460638905,-817.46965564,0.00026244,2]
[394330798,1763460638915,-817.46965564,0.00026244,2]
[394330799,1763460638924,-817.46965564,0.00026244,2]
[394330800,1763460638934,-813.16718376,0.00026244,2]
[394330801,1763460638943,-813.16718376,0.00026244,2]
[394330802,1763460638953,-813.16718376,0.00026244,2]
[394330803,1763460638962,-813.16718376,0.00026244,2]
[394330804,1763460638971,-813.16718376,0.00026244,2]
[394330805,1763460638981,-813.16718376,0.00026244,2]
[394330806,1763460638990,-813.16718376,0.00026244,2]
[394330807,1763460639000,-813.16718376,0.00026244,2]
[394330808,1763460639010,-813.16718376,0.00026244,2]
[394330809,1763460639022,-813.16718376,0.00026244,2]
[394330810,1763460639031,-813.16718376,0.00026244,2]
[394330811,1763460639041,-813.16718376,0.00026244,2]
[394330812,1763460639051,-813.16718376,0.00026244,2]
[394330813,1763460639061,-813.16718376,0.00026244,2]
[394330814,1763460639070,-813.16718376,0.00026244,2]
[394330815,1763460639079,-813.16718376,0.00026244,2]
[394330816,1763460639088,-813.16718376,0.00026244,2]
[394330817,1763460639098,-813.16718376,0.00026244,2]
[394330818,1763460639109,-813.16718376,0.00026244,2]
[394330819,1763460639118,-813.16718376,0.00026244,2]
[394330820,1763460639127,-813.16718376,0.00026244,2]
[394330821,1763460639136,-813.16718376,0.00026244,2]
[394330822,1763460639145,-813.16718376,0.00026244,2]
[394330823,1763460639154,-813.16718376,0.00026244,2]
[394330824,1763460639164,-813.16718376,0.00026244,2]
[394330825,1763460639173,-813.16718376,0.00026244,2]
[394330826,1763460639182,-813.16718376,0.00026244,2]
[394330827,1763460639192,-813.16718376,0.00026244,2]
[394330828,1763460639201,-813.16718376,0.00026244,2]
[394330829,1763460639210,-813.16718376,0.00026244,2]
[394330830,1763460639220,-813.16718376,0.00026244,2]
[394330831,1763460639229,-813.16718376,0.00026244,2]
[394330832,1763460639238,-813.16718376,0.00026244,2]
[394330833,1763460639247,-813.16718376,0.00026244,2]
[394330834,1763460639257,-813.16718376,0.00026244,2]
[394330835,1763460639266,-813.16718374,0.00026244,2]
[394330836,1763460639276,-813.16718374,0.00026244,2]
[394330837,1763460639285,-151.0,0.00026244,7]
[394330838,1763460639295,-151.0,0.00026244,7]
[394330839,1763460639305,-813.16718373,0.00026244,2]
[394330840,1763460639314,-175.918206,0.00026244,7]
[394330841,1763460639323,-151.0,0.00026244,7]
[394330842,1763460639332,-154.822208,0.00026244,7]
[394330843,1763460639342,-151.0,0.00026244,7]
[394330844,1763460639351,-151.0,0.00026244,7]
[394330845,1763460639361,-4785.64811446,0.00026245,2]
[394330846,1763460639370,-198.44,0.00026249,3]
[394330847,1763460639380,-4785.64811446,0.00026249,2]
[394330848,1763460639390,-553.6610436,0.00026254,2]
[394330849,1763460639399,-151.0,0.00026255,7]
[394330850,1763460639408,-151.0,0.00026255,7]
[394330851,1763460639417,-151.0,0.00026255,7]
[394330852,1763460639426,-455.358809,0.00026255,7]
[394330853,1763460639435,-455.358809,0.00026255,7]
[394330854,1763460639444,-455.358809,0.00026255,7]
[394330855,1763460639453,-455.358809,0.00026255,7]
[394330856,1763460639463,-455.358809,0.00026255,7]
[394330857,1763460639472,-455.358809,0.00026255,7]
[394330858,1763460639481,-455.358809,0.00026255,7]
[394330859,1763460639491,-455.358809,0.00026255,7]
[394330860,1763460639500,-455.358809,0.00026255,7]
[394330861,1763460639509,-455.358809,0.00026255,7]
[394330862,1763460639519,-455.358809,0.00026255,7]
[394330863,1763460639528,-455.358809,0.00026255,7]
[394330864,1763460639537,-455.358809,0.00026255,7]
[394330865,1763460639546,-455.358809,0.00026255,7]
[394330866,1763460639555,-455.358809,0.00026255,7]
[394330867,1763460639564,-455.358809,0.00026255,7]
[394330868,1763460639573,-151.0,0.00026255,7]
[394330869,1763460639582,-172.701613,0.00026255,7]
[394330870,1763460639591,-287.755065,0.00026255,7]
[394330871,1763460639601,-151.0,0.00026255,7]
[394330872,1763460639611,-151.0,0.00026255,7]
[394330873,1763460639620,-151.0,0.00026256,7]
[394330874,1763460639629,-151.0,0.00026256,7]
[394330875,1763460639638,-151.0,0.00026256,7]
[394330876,1763460639648,-151.0,0.00026256,7]
[394330877,1763460639657,-151.0,0.00026256,2]
[394330878,1763460639666,-151.0,0.00026257,2]
[394330879,1763460639675,-151.0,0.00026257,2]
[394330880,1763460639685,-152.913818,0.00026257,2]
[394330881,1763460639694,-500.0,0.00026257,2]
[394330882,1763460639703,-151.0,0.00026257,2]
[394330883,1763460639712,-154.23668326,0.00026257,2]
[394330884,1763460639721,-157.40669366,0.00026257,2]
[394330885,1763460639730,-151.0,0.00026257,2]
[394330886,1763460639740,-161.74807931,0.00026257,2]
[394330887,1763460639749,-151.0,0.00026257,2]
[394330888,1763460639759,-157.93116868,0.00026257,2]
[394330889,1763460639768,-154.60284378,0.00026257,2]
[394330890,1763460639778,-500.0,0.00026258,2]
[394330891,1763460639787,-151.0,0.00026259,7]
[394330892,1763460639796,-455.358809,0.00026259,7]
[394330893,1763460639806,-455.358809,0.00026259,7]
[394330897,1763460639893,-455.358809,0.00026259,7]
[394330898,1763460639902,-455.358813,0.00026259,7]
[394330899,1763460639911,-20692.59324127,0.00026259,2]
[394330900,1763460639920,-151.0,0.00026272,7]
[394330901,1763460639929,-151.0,0.00026272,7]
[394330902,1763460639939,-170.155852,0.00026272,7]
[394330903,1763460639948,-151.0,0.00026272,7]
[394330904,1763460639957,-151.0,0.00026272,7]
[394330905,1763460639966,-151.0,0.00026272,7]
[394330906,1763460639976,-151.0,0.00026272,7]
[394330908,1763460639987,-151.0,0.00026272,7]
[394330910,1763460639996,-151.0,0.00026272,7]
[394330912,1763460640006,-155.485935,0.00026272,7]
[394330913,1763460640015,-500.0,0.00026273,2]
[394330915,1763460640026,-309.54241997,0.00026273,2]
[394330916,1763460640036,-500.0,0.00026273,2]
[394330918,1763460640045,-500.0,0.00026273,2]
[394330920,1763460640055,-500.0,0.00026273,2]
[394330922,1763460640064,-542.30935631,0.00026273,2]
[394330923,1763460640074,-500.0,0.00026273,2]
[394330924,1763460640083,-514.47484948,0.00026273,2]
[394330925,1763460640092,-157.36469884,0.00026273,2]
[394330926,1763460640103,-500.0,0.00026273,2]
[394330927,1763460640112,-500.0,0.00026273,2]
[394330928,1763460640121,-500.0,0.00026273,2]
[394330929,1763460640131,-502.54686182,0.00026273,2]
[394330930,1763460640140,-500.0,0.00026273,2]
[394330931,1763460640149,-500.0,0.00026273,2]
[394330932,1763460640159,-500.0,0.00026273,2]
[394330933,1763460640168,-500.0,0.00026273,2]
[394330934,1763460640177,-500.0,0.00026273,2]
[394330935,1763460640186,-500.0,0.00026273,2]
[394330936,1763460640195,-500.0,0.00026273,2]
[394330937,1763460640204,-1020.34750664,0.00026298,2]
[394330938,1763460640214,-495.18708248,0.00026298,2]
[394330939,1763460640223,-506.735317,0.00026298,2]
[394330941,1763460640232,-248.21,0.000263,7]
[394330942,1763460640241,-600.0,0.0002632,30]
[394330943,1763460640250,-500.0,0.00026353,20]
[394330944,1763460640260,-500.88893159,0.00026362,2]
[394330945,1763460640269,-1104.57648734,0.00026376,2]
[394330946,1763460640278,-151.0,0.00026394,2]
[394330947,1763460640287,-157.10706613,0.00026394,2]
[394330948,1763460640296,-616.13815763,0.00026394,2]
[394330949,1763460640306,-151.0,0.00026394,2]
[394330950,1763460640315,-151.0,0.00026394,2]
[394330951,1763460640324,-151.0,0.00026394,2]
[394330952,1763460640334,-530.96094902,0.00026395,2]
[394330953,1763460640343,-151.0,0.00026531,2]
[394330954,1763460640352,-151.0,0.00026531,2]
[394330955,1763460640361,-151.0,0.00026531,2]
[394330956,1763460640371,-151.0,0.00026531,2]
[394330957,1763460640381,-1517.78918519,0.00026568,2]
[394330958,1763460640389,-1500.0,0.00026568,2]
[394330959,1763460640399,-1022.22373743,0.00026568,2]
[394330960,1763460640408,-204.42006454,0.00026568,2]
[394330961,1763460640417,-1500.0,0.00026568,2]
[394330962,1763460640425,-1500.0,0.00026568,2]